[Event "*** Titled Tuesday Blitz"]
[Site "Chess.com"]
[Date "2020.05.05"]
[Round "6"]
[White "ChessTraining77"]
[Black "northridgehawk"]
[Result "1-0"]
[WhiteElo "2544"]
[BlackElo "2277"]
[TimeControl "180+1"]
[EndTime "11:07:40 PDT"]
[Termination "ChessTraining77 won on time"]

1. e4 {[%clk 0:03:00.9]} 1... e5 {[%clk 0:02:59.2]} 2. Nf3 {[%clk 0:03:00.8]}
2... Nc6 {[%clk 0:02:59.6]} 3. Bb5 {[%clk 0:03:00.5]} 3... a6 {[%clk 0:03:00]}
4. Ba4 {[%clk 0:03:00.5]} 4... Nf6 {[%clk 0:03:00.9]} 5. O-O {[%clk 0:03:00.6]}
5... b5 {[%clk 0:03:01.8]} 6. Bb3 {[%clk 0:02:59.5]} 6... Bc5 {[%clk 0:03:02.5]}
7. c3 {[%clk 0:02:58.8]} 7... d6 {[%clk 0:03:03]} 8. d4 {[%clk 0:02:59]} 8...
Bb6 {[%clk 0:03:03.7]} 9. Be3 {[%clk 0:02:59.2]} 9... O-O {[%clk 0:03:02]} 10.
Nbd2 {[%clk 0:02:58.4]} 10... Re8 {[%clk 0:02:55.7]} 11. Re1 {[%clk 0:02:57.4]}
11... Bg4 {[%clk 0:02:49.4]} 12. h3 {[%clk 0:02:53.3]} 12... Bh5 {[%clk
0:02:49.2]} 13. Bg5 {[%clk 0:02:53.4]} 13... exd4 {[%clk 0:02:45.5]} 14. Bd5
{[%clk 0:02:52.9]} 14... Qd7 {[%clk 0:02:37.4]} 15. Bxf6 {[%clk 0:02:52.2]}
15... gxf6 {[%clk 0:02:38.3]} 16. cxd4 {[%clk 0:02:50.6]} 16... Rad8 {[%clk
0:02:34.5]} 17. Nb3 {[%clk 0:02:29.4]} 17... Nb4 {[%clk 0:02:24]} 18. Bb7 {[%clk
0:01:57.7]} 18... c6 {[%clk 0:01:37.5]} 19. a3 {[%clk 0:01:56.1]} 19... Nc2
{[%clk 0:01:20.1]} 20. Qxc2 {[%clk 0:01:53.6]} 20... Qxb7 {[%clk 0:01:20.2]} 21.
Nh4 {[%clk 0:01:52.1]} 21... Bg6 {[%clk 0:01:17.6]} 22. Rac1 {[%clk 0:01:44.8]}
22... Rc8 {[%clk 0:01:11.1]} 23. Nxg6 {[%clk 0:01:05.8]} 23... hxg6 {[%clk
0:01:12]} 24. Qd2 {[%clk 0:01:03.7]} 24... Kg7 {[%clk 0:01:09.6]} 25. Qf4 {[%clk
0:01:00.3]} 25... c5 {[%clk 0:01:02.8]} 26. d5 {[%clk 0:00:55]} 26... c4 {[%clk
0:01:00.8]} 27. Nd2 {[%clk 0:00:54.6]} 27... Qc7 {[%clk 0:00:51.4]} 28. Nf3
{[%clk 0:00:51.7]} 28... Qc5 {[%clk 0:00:50.7]} 29. Rc2 {[%clk 0:00:48.9]} 29...
Re7 {[%clk 0:00:43.8]} 30. h4 {[%clk 0:00:48.1]} 30... Rce8 {[%clk 0:00:43.6]}
31. h5 {[%clk 0:00:44.6]} 31... f5 {[%clk 0:00:27]} 32. Ng5 {[%clk 0:00:32.1]}
32... Re5 {[%clk 0:00:15.9]} 33. h6+ {[%clk 0:00:30.1]} 33... Kg8 {[%clk
0:00:09.6]} 34. Qh4 {[%clk 0:00:19.3]} 1-0

[Event "*** Titled Tuesday Blitz"]
[Site "Chess.com"]
[Date "2020.05.05"]
[Round "6"]
[White "Djager97"]
[Black "CzechmVIII"]
[Result "1-0"]
[WhiteElo "2477"]
[BlackElo "2261"]
[TimeControl "180+1"]
[EndTime "11:07:40 PDT"]
[Termination "Djager97 won on time"]

1. e4 {[%clk 0:03:00.9]} 1... c5 {[%clk 0:02:59.9]} 2. Nf3 {[%clk 0:03:01.3]}
2... d6 {[%clk 0:03:00.1]} 3. d4 {[%clk 0:03:01.9]} 3... cxd4 {[%clk 0:03:00.5]}
4. Nxd4 {[%clk 0:03:02.8]} 4... Nf6 {[%clk 0:03:00.6]} 5. Nc3 {[%clk 0:03:03.5]}
5... g6 {[%clk 0:03:01]} 6. Be2 {[%clk 0:03:02.8]} 6... Bg7 {[%clk 0:03:00.2]}
7. O-O {[%clk 0:03:03.1]} 7... Nc6 {[%clk 0:02:59.3]} 8. Nb3 {[%clk 0:03:02]}
8... O-O {[%clk 0:02:59.2]} 9. Bg5 {[%clk 0:03:02.6]} 9... Be6 {[%clk
0:02:56.9]} 10. Kh1 {[%clk 0:03:01]} 10... Rc8 {[%clk 0:02:53.4]} 11. f4 {[%clk
0:03:01.3]} 11... a6 {[%clk 0:02:52.9]} 12. f5 {[%clk 0:02:54.7]} 12... Bd7
{[%clk 0:02:49.5]} 13. Bd3 {[%clk 0:02:34.5]} 13... Ne5 {[%clk 0:02:37.9]} 14.
Qe1 {[%clk 0:02:30.1]} 14... b5 {[%clk 0:02:20.8]} 15. a3 {[%clk 0:02:29.7]}
15... Nc4 {[%clk 0:02:05.8]} 16. Bxc4 {[%clk 0:02:17.9]} 16... Rxc4 {[%clk
0:02:05.4]} 17. Rd1 {[%clk 0:02:13.5]} 17... Qc7 {[%clk 0:01:34]} 18. Bxf6
{[%clk 0:02:12.3]} 18... exf6 {[%clk 0:01:34.2]} 19. Nd5 {[%clk 0:02:11.8]}
19... Qd8 {[%clk 0:01:18.8]} 20. c3 {[%clk 0:02:11.1]} 20... Re8 {[%clk
0:01:10.5]} 21. Nd4 {[%clk 0:02:05.1]} 21... Bc6 {[%clk 0:00:57.3]} 22. Qh4
{[%clk 0:01:24]} 22... Bxd5 {[%clk 0:00:50]} 23. exd5 {[%clk 0:01:24.9]} 23...
Qb6 {[%clk 0:00:34.1]} 24. Rde1 {[%clk 0:01:17.1]} 24... Re5 {[%clk 0:00:28.5]}
25. Qg3 {[%clk 0:01:08.1]} 25... Rxd4 {[%clk 0:00:19.1]} 26. cxd4 {[%clk
0:01:06.7]} 26... Qxd4 {[%clk 0:00:19.4]} 27. Rxe5 {[%clk 0:00:44.3]} 27... fxe5
{[%clk 0:00:18.1]} 28. Qf3 {[%clk 0:00:22]} 28... f6 {[%clk 0:00:07.8]} 29. h3
{[%clk 0:00:19.5]} 29... Qxb2 {[%clk 0:00:07.4]} 30. fxg6 {[%clk 0:00:15]} 30...
hxg6 {[%clk 0:00:07.5]} 31. Qg4 {[%clk 0:00:15.9]} 31... Qc2 {[%clk 0:00:05.3]}
32. Qe6+ {[%clk 0:00:14.6]} 32... Kh7 {[%clk 0:00:03.9]} 33. Qxd6 {[%clk
0:00:15.3]} 33... Qd3 {[%clk 0:00:04.1]} 34. Re1 {[%clk 0:00:14.3]} 34... e4
{[%clk 0:00:02.1]} 35. Qe6 {[%clk 0:00:13.8]} 35... f5 {[%clk 0:00:01]} 36. d6
{[%clk 0:00:14.2]} 1-0

[Event "*** Titled Tuesday Blitz"]
[Site "Chess.com"]
[Date "2020.05.05"]
[Round "6"]
[White "Abund"]
[Black "Kingsman132"]
[Result "0-1"]
[WhiteElo "2614"]
[BlackElo "2376"]
[TimeControl "180+1"]
[EndTime "11:07:40 PDT"]
[Termination "Kingsman132 won by checkmate"]

1. Nf3 {[%clk 0:03:00.9]} 1... d5 {[%clk 0:02:58.3]} 2. d4 {[%clk 0:03:00.7]}
2... Bf5 {[%clk 0:02:53.7]} 3. c4 {[%clk 0:03:00.8]} 3... e6 {[%clk 0:02:47.2]}
4. Nc3 {[%clk 0:03:00.3]} 4... c6 {[%clk 0:02:45.3]} 5. Qb3 {[%clk 0:02:33.3]}
5... Qb6 {[%clk 0:02:41.5]} 6. c5 {[%clk 0:02:29.2]} 6... Qxb3 {[%clk
0:02:36.3]} 7. axb3 {[%clk 0:02:30.1]} 7... a6 {[%clk 0:02:35.3]} 8. b4 {[%clk
0:02:29.7]} 8... Nd7 {[%clk 0:02:30.3]} 9. b5 {[%clk 0:02:29.3]} 9... cxb5
{[%clk 0:02:26.3]} 10. Nxb5 {[%clk 0:02:28.7]} 10... Rc8 {[%clk 0:02:24.3]} 11.
Nc3 {[%clk 0:02:26.7]} 11... Ne7 {[%clk 0:02:17.7]} 12. e3 {[%clk 0:02:14.9]}
12... Nc6 {[%clk 0:02:16.4]} 13. Be2 {[%clk 0:02:10.4]} 13... Be7 {[%clk
0:02:14.3]} 14. O-O {[%clk 0:02:09.8]} 14... O-O {[%clk 0:02:13.1]} 15. Bd2
{[%clk 0:02:10.1]} 15... h6 {[%clk 0:02:07]} 16. Rfc1 {[%clk 0:02:04.3]} 16...
Rfd8 {[%clk 0:01:52.5]} 17. h3 {[%clk 0:01:55.8]} 17... Bf6 {[%clk 0:01:50]} 18.
Na4 {[%clk 0:01:52.7]} 18... e5 {[%clk 0:01:42.7]} 19. Bc3 {[%clk 0:01:52.6]}
19... exd4 {[%clk 0:01:39]} 20. exd4 {[%clk 0:01:52.4]} 20... Re8 {[%clk
0:01:31.3]} 21. Bd1 {[%clk 0:01:23.2]} 21... Be4 {[%clk 0:01:27.1]} 22. b4
{[%clk 0:01:15.9]} 22... Nf8 {[%clk 0:01:21.7]} 23. Nb6 {[%clk 0:01:11.4]} 23...
Rcd8 {[%clk 0:01:17.8]} 24. Ba4 {[%clk 0:00:58.8]} 24... Ne6 {[%clk 0:01:14.6]}
25. Bxc6 {[%clk 0:00:30.9]} 25... bxc6 {[%clk 0:01:15.5]} 26. Rxa6 {[%clk
0:00:31.1]} 26... Nf4 {[%clk 0:01:09.4]} 27. Re1 {[%clk 0:00:13.7]} 27... Bxf3
{[%clk 0:01:05.3]} 28. gxf3 {[%clk 0:00:11.6]} 28... Ne2+ {[%clk 0:00:59.5]} 29.
Rxe2 {[%clk 0:00:11.9]} 29... Rxe2 {[%clk 0:00:54.2]} 30. Kf1 {[%clk 0:00:11.4]}
30... Rc2 {[%clk 0:00:52]} 31. Na4 {[%clk 0:00:11.3]} 31... Re8 {[%clk
0:00:49.5]} 32. Rxc6 {[%clk 0:00:08.8]} 32... Bh4 {[%clk 0:00:44.8]} 33. b5
{[%clk 0:00:05.1]} 33... Rxf2+ {[%clk 0:00:38.5]} 34. Kg1 {[%clk 0:00:05.4]}
34... Ree2 {[%clk 0:00:33.4]} 35. b6 {[%clk 0:00:03.9]} 35... Bg3 {[%clk
0:00:25.5]} 36. b7 {[%clk 0:00:03.2]} 36... Bh2+ {[%clk 0:00:23.3]} 37. Kh1
{[%clk 0:00:02.6]} 37... Rf1# {[%clk 0:00:21.2]} 0-1

[Event "*** Titled Tuesday Blitz"]
[Site "Chess.com"]
[Date "2020.05.05"]
[Round "6"]
[White "Tashik"]
[Black "1977Ivan"]
[Result "0-1"]
[WhiteElo "2464"]
[BlackElo "2639"]
[TimeControl "180+1"]
[EndTime "11:07:41 PDT"]
[Termination "1977Ivan won by resignation"]

1. c4 {[%clk 0:02:56.8]} 1... e5 {[%clk 0:02:59]} 2. Nc3 {[%clk 0:02:56.4]} 2...
Nf6 {[%clk 0:02:58.1]} 3. Nf3 {[%clk 0:02:56.6]} 3... Nc6 {[%clk 0:02:58.2]} 4.
e4 {[%clk 0:02:57.1]} 4... Bb4 {[%clk 0:02:50.4]} 5. d3 {[%clk 0:02:56.8]} 5...
d6 {[%clk 0:02:49.1]} 6. a3 {[%clk 0:02:50.6]} 6... Ba5 {[%clk 0:02:42.8]} 7. b4
{[%clk 0:02:50.4]} 7... Bb6 {[%clk 0:02:42.8]} 8. Na4 {[%clk 0:02:51]} 8... Bg4
{[%clk 0:02:38.4]} 9. Be2 {[%clk 0:02:49]} 9... Bxf3 {[%clk 0:02:34.6]} 10. Bxf3
{[%clk 0:02:49]} 10... Bd4 {[%clk 0:02:34.7]} 11. Rb1 {[%clk 0:02:45.8]} 11...
a6 {[%clk 0:02:34.8]} 12. O-O {[%clk 0:02:44.8]} 12... b5 {[%clk 0:02:33.2]} 13.
Nb2 {[%clk 0:02:39.1]} 13... O-O {[%clk 0:02:32.6]} 14. Be3 {[%clk 0:02:33.3]}
14... Qb8 {[%clk 0:02:09.8]} 15. Qd2 {[%clk 0:02:24.9]} 15... Qb6 {[%clk
0:02:08.4]} 16. Nd1 {[%clk 0:02:16.9]} 16... Ne7 {[%clk 0:02:04.8]} 17. Nc3
{[%clk 0:02:15.2]} 17... c6 {[%clk 0:02:04.6]} 18. Ne2 {[%clk 0:02:13.4]} 18...
Bxe3 {[%clk 0:02:03.2]} 19. fxe3 {[%clk 0:02:13.3]} 19... h6 {[%clk 0:02:02]}
20. Kh1 {[%clk 0:02:11.3]} 20... Nh7 {[%clk 0:01:47.4]} 21. Ng3 {[%clk 0:02:09]}
21... Ng5 {[%clk 0:01:46.1]} 22. Be2 {[%clk 0:01:59.1]} 22... g6 {[%clk
0:01:45.4]} 23. Rf6 {[%clk 0:01:55.2]} 23... Qc7 {[%clk 0:01:43.9]} 24. Rbf1
{[%clk 0:01:53.9]} 24... Kg7 {[%clk 0:01:42.3]} 25. Qc3 {[%clk 0:01:31.4]} 25...
Ng8 {[%clk 0:01:40.4]} 26. R6f2 {[%clk 0:01:29.1]} 26... Qe7 {[%clk 0:01:32.4]}
27. Kg1 {[%clk 0:01:21]} 27... bxc4 {[%clk 0:01:21.6]} 28. Qxc4 {[%clk
0:01:17.3]} 28... Qd7 {[%clk 0:01:16.9]} 29. Qc3 {[%clk 0:01:09]} 29... a5
{[%clk 0:01:08.9]} 30. Bd1 {[%clk 0:01:07.3]} 30... axb4 {[%clk 0:01:07.9]} 31.
axb4 {[%clk 0:01:08.2]} 31... h5 {[%clk 0:01:01.5]} 32. h4 {[%clk 0:00:58.5]}
32... Nh7 {[%clk 0:01:00.9]} 33. Bxh5 {[%clk 0:00:47.1]} 33... gxh5 {[%clk
0:00:57.7]} 34. Nxh5+ {[%clk 0:00:48]} 34... Kh8 {[%clk 0:00:57.7]} 35. Ng3
{[%clk 0:00:45.2]} 35... Nh6 {[%clk 0:00:40]} 36. Nf5 {[%clk 0:00:42]} 36...
Nxf5 {[%clk 0:00:39.3]} 37. Rxf5 {[%clk 0:00:42.9]} 37... f6 {[%clk 0:00:39.5]}
38. Kh2 {[%clk 0:00:35.6]} 38... Rg8 {[%clk 0:00:39.5]} 39. R1f2 {[%clk
0:00:33.5]} 39... Qg7 {[%clk 0:00:34.9]} 40. R5f3 {[%clk 0:00:30.3]} 40... Qg4
{[%clk 0:00:33.3]} 41. Rh3 {[%clk 0:00:17.9]} 41... Qd1 {[%clk 0:00:32.6]} 42.
Qxc6 {[%clk 0:00:14.3]} 42... Ra1 {[%clk 0:00:31.5]} 0-1

[Event "*** Titled Tuesday Blitz"]
[Site "Chess.com"]
[Date "2020.05.05"]
[Round "6"]
[White "matiss90"]
[Black "731291"]
[Result "1-0"]
[WhiteElo "2524"]
[BlackElo "2676"]
[TimeControl "180+1"]
[EndTime "11:07:42 PDT"]
[Termination "matiss90 won by resignation"]

1. e4 {[%clk 0:03:00.9]} 1... e6 {[%clk 0:02:59.2]} 2. d4 {[%clk 0:03:00]} 2...
d5 {[%clk 0:02:59.2]} 3. Nc3 {[%clk 0:03:00.5]} 3... Bb4 {[%clk 0:02:58.8]} 4.
exd5 {[%clk 0:03:00.6]} 4... exd5 {[%clk 0:02:58.9]} 5. Bd3 {[%clk 0:03:01]}
5... Nc6 {[%clk 0:02:59.2]} 6. a3 {[%clk 0:03:01]} 6... Bxc3+ {[%clk 0:02:59]}
7. bxc3 {[%clk 0:03:01.9]} 7... Nge7 {[%clk 0:02:59.2]} 8. Ne2 {[%clk
0:03:02.1]} 8... Bf5 {[%clk 0:02:58.1]} 9. O-O {[%clk 0:03:01.5]} 9... O-O
{[%clk 0:02:57.8]} 10. Rb1 {[%clk 0:03:01.2]} 10... b6 {[%clk 0:02:57.3]} 11.
Ng3 {[%clk 0:03:01.4]} 11... Bg6 {[%clk 0:02:56.9]} 12. f4 {[%clk 0:02:59.3]}
12... Bxd3 {[%clk 0:02:47.6]} 13. cxd3 {[%clk 0:03:00.2]} 13... Qd7 {[%clk
0:02:45.5]} 14. f5 {[%clk 0:03:00.1]} 14... f6 {[%clk 0:02:45.6]} 15. Qg4 {[%clk
0:03:00.1]} 15... Nc8 {[%clk 0:02:43.4]} 16. Nh5 {[%clk 0:02:45]} 16... Kh8
{[%clk 0:02:38.4]} 17. Bf4 {[%clk 0:02:40.2]} 17... g6 {[%clk 0:02:02.2]} 18.
Ng3 {[%clk 0:02:13.6]} 18... g5 {[%clk 0:02:02]} 19. Bd2 {[%clk 0:02:10.4]}
19... Nd6 {[%clk 0:02:01.6]} 20. h4 {[%clk 0:02:10.3]} 20... h6 {[%clk
0:01:57.6]} 21. hxg5 {[%clk 0:02:10.1]} 21... hxg5 {[%clk 0:01:58.5]} 22. Kf2
{[%clk 0:02:04.2]} 22... Kg7 {[%clk 0:01:55.1]} 23. Rh1 {[%clk 0:01:42.2]} 23...
Rh8 {[%clk 0:01:29.1]} 24. Bxg5 {[%clk 0:01:41.8]} 24... Kf7 {[%clk 0:01:26.3]}
25. Rxh8 {[%clk 0:00:42.5]} 25... Rxh8 {[%clk 0:01:27.2]} 26. Bf4 {[%clk
0:00:42.6]} 26... Ne7 {[%clk 0:01:20.7]} 27. Bxd6 {[%clk 0:00:39.3]} 27... Qxd6
{[%clk 0:01:21.6]} 28. Re1 {[%clk 0:00:34.7]} 28... Rg8 {[%clk 0:01:17.9]} 29.
Qh5+ {[%clk 0:00:30]} 29... Kf8 {[%clk 0:01:17.9]} 30. Qh6+ {[%clk 0:00:29.8]}
30... Kf7 {[%clk 0:01:00]} 31. Nh5 {[%clk 0:00:29.7]} 31... Nxf5 {[%clk
0:00:51.9]} 32. Qh7+ {[%clk 0:00:27.7]} 32... Kf8 {[%clk 0:00:52.3]} 33. Qxf5
{[%clk 0:00:27.1]} 33... Kf7 {[%clk 0:00:33.6]} 34. g3 {[%clk 0:00:19]} 34...
Rg5 {[%clk 0:00:25]} 35. Qh7+ {[%clk 0:00:18.7]} 35... Kf8 {[%clk 0:00:25.2]}
36. Nf4 {[%clk 0:00:17.4]} 36... Rg7 {[%clk 0:00:08.8]} 37. Ne6+ {[%clk
0:00:14.8]} 37... Qxe6 {[%clk 0:00:09]} 38. Qxg7+ {[%clk 0:00:15]} 38... Kxg7
{[%clk 0:00:09.9]} 39. Rxe6 {[%clk 0:00:14.9]} 1-0

[Event "*** Titled Tuesday Blitz"]
[Site "Chess.com"]
[Date "2020.05.05"]
[Round "6"]
[White "Malysch"]
[Black "DaggiGretarsson"]
[Result "1-0"]
[WhiteElo "2413"]
[BlackElo "2506"]
[TimeControl "180+1"]
[EndTime "11:07:42 PDT"]
[Termination "Malysch won by resignation"]

1. d4 {[%clk 0:03:00.9]} 1... g6 {[%clk 0:02:59.4]} 2. c4 {[%clk 0:03:01.2]}
2... Bg7 {[%clk 0:02:59.6]} 3. Nf3 {[%clk 0:03:01.9]} 3... e6 {[%clk 0:02:59.5]}
4. g3 {[%clk 0:03:02.3]} 4... Ne7 {[%clk 0:02:59.5]} 5. Bg2 {[%clk 0:03:02.2]}
5... d5 {[%clk 0:02:58.6]} 6. Nbd2 {[%clk 0:02:58.1]} 6... O-O {[%clk
0:02:55.3]} 7. O-O {[%clk 0:02:57]} 7... Nbc6 {[%clk 0:02:51.7]} 8. cxd5 {[%clk
0:02:50.7]} 8... exd5 {[%clk 0:02:47.6]} 9. Nb3 {[%clk 0:02:49.8]} 9... Nf5
{[%clk 0:02:42.3]} 10. Bf4 {[%clk 0:02:47.4]} 10... b6 {[%clk 0:02:21.5]} 11.
Rc1 {[%clk 0:02:45.1]} 11... Bb7 {[%clk 0:02:20.8]} 12. Qd2 {[%clk 0:02:30.9]}
12... Re8 {[%clk 0:02:12.7]} 13. Rfd1 {[%clk 0:02:28.4]} 13... Nd6 {[%clk
0:02:05.9]} 14. Ne5 {[%clk 0:02:24.9]} 14... Nxe5 {[%clk 0:02:02.5]} 15. Bxe5
{[%clk 0:01:49.5]} 15... Bxe5 {[%clk 0:02:02.6]} 16. dxe5 {[%clk 0:01:49.1]}
16... Rxe5 {[%clk 0:02:02.3]} 17. Nd4 {[%clk 0:01:36.3]} 17... c5 {[%clk
0:01:47.8]} 18. Nc2 {[%clk 0:00:48.6]} 18... Nc4 {[%clk 0:01:36.8]} 19. Qf4
{[%clk 0:00:34.6]} 19... Qe7 {[%clk 0:01:13.2]} 20. b3 {[%clk 0:00:30.1]} 20...
Rf5 {[%clk 0:01:11.9]} 21. Qh6 {[%clk 0:00:20.9]} 21... Ne5 {[%clk 0:00:50.3]}
22. Ne3 {[%clk 0:00:19.5]} 22... Rh5 {[%clk 0:00:49.6]} 23. Qf4 {[%clk 0:00:19]}
23... d4 {[%clk 0:00:48.5]} 24. Bxb7 {[%clk 0:00:15.8]} 24... Qxb7 {[%clk
0:00:48]} 25. g4 {[%clk 0:00:12.9]} 25... Rh3 {[%clk 0:00:43.2]} 26. Qxe5 {[%clk
0:00:09.8]} 26... dxe3 {[%clk 0:00:42.5]} 27. f3 {[%clk 0:00:10.3]} 27... h5
{[%clk 0:00:36.6]} 28. g5 {[%clk 0:00:08.2]} 28... Rh4 {[%clk 0:00:34.4]} 29.
Rd6 {[%clk 0:00:07]} 29... Rf8 {[%clk 0:00:30.9]} 30. Rcd1 {[%clk 0:00:07]}
30... Rd4 {[%clk 0:00:26.8]} 31. R1xd4 {[%clk 0:00:05.9]} 31... cxd4 {[%clk
0:00:26.8]} 32. Rxd4 {[%clk 0:00:06.2]} 32... Qa6 {[%clk 0:00:26.6]} 33. Qxe3
{[%clk 0:00:05.4]} 33... Qxa2 {[%clk 0:00:26.4]} 34. Rd7 {[%clk 0:00:03.8]}
34... Qxb3 {[%clk 0:00:20.4]} 35. Qxb3 {[%clk 0:00:02.6]} 1-0

[Event "*** Titled Tuesday Blitz"]
[Site "Chess.com"]
[Date "2020.05.05"]
[Round "6"]
[White "manuellarrea"]
[Black "HouseOfDurin"]
[Result "1-0"]
[WhiteElo "2193"]
[BlackElo "1986"]
[TimeControl "180+1"]
[EndTime "11:07:42 PDT"]
[Termination "manuellarrea won on time"]

1. e4 {[%clk 0:03:00.6]} 1... c5 {[%clk 0:02:59.8]} 2. Nf3 {[%clk 0:03:00.5]}
2... Nc6 {[%clk 0:03:00.2]} 3. d4 {[%clk 0:03:00.9]} 3... cxd4 {[%clk
0:03:01.1]} 4. Nxd4 {[%clk 0:03:00.9]} 4... e5 {[%clk 0:03:01.8]} 5. Nb5 {[%clk
0:02:59.6]} 5... d6 {[%clk 0:03:01.8]} 6. c4 {[%clk 0:02:59.6]} 6... Be6 {[%clk
0:03:01.1]} 7. N1c3 {[%clk 0:02:59.2]} 7... a6 {[%clk 0:03:01.1]} 8. Na3 {[%clk
0:02:58.5]} 8... Nf6 {[%clk 0:03:01.8]} 9. Be2 {[%clk 0:02:56.9]} 9... Be7
{[%clk 0:03:01.6]} 10. O-O {[%clk 0:02:52.9]} 10... Rc8 {[%clk 0:03:00.9]} 11.
f3 {[%clk 0:02:49.3]} 11... O-O {[%clk 0:02:52.8]} 12. Nd5 {[%clk 0:02:35]}
12... Na5 {[%clk 0:02:44.8]} 13. Be3 {[%clk 0:02:31.6]} 13... Bxd5 {[%clk
0:02:25.9]} 14. cxd5 {[%clk 0:02:29.4]} 14... b5 {[%clk 0:02:25.6]} 15. b3
{[%clk 0:02:24]} 15... Nd7 {[%clk 0:02:17.1]} 16. Nc2 {[%clk 0:02:19.9]} 16...
Nb7 {[%clk 0:01:46.1]} 17. b4 {[%clk 0:02:13.2]} 17... f5 {[%clk 0:01:22.9]} 18.
Qd2 {[%clk 0:02:08.6]} 18... Nb6 {[%clk 0:01:07.4]} 19. Rfc1 {[%clk 0:01:57]}
19... Nc4 {[%clk 0:01:03.5]} 20. Bxc4 {[%clk 0:01:54.2]} 20... Rxc4 {[%clk
0:01:04.4]} 21. Na3 {[%clk 0:01:35.6]} 21... Rxc1+ {[%clk 0:00:54.4]} 22. Rxc1
{[%clk 0:01:34.7]} 22... fxe4 {[%clk 0:00:54.7]} 23. fxe4 {[%clk 0:01:33.2]}
23... Qe8 {[%clk 0:00:29.7]} 24. Rc6 {[%clk 0:01:29.1]} 24... Qg6 {[%clk
0:00:23.3]} 25. Qd3 {[%clk 0:01:21.1]} 25... Bg5 {[%clk 0:00:19.1]} 26. Bf2
{[%clk 0:01:09.9]} 26... Qf6 {[%clk 0:00:12.6]} 27. Qe2 {[%clk 0:01:03]} 27...
Qf4 {[%clk 0:00:11.8]} 28. g3 {[%clk 0:00:54.4]} 28... Qd2 {[%clk 0:00:11.3]}
29. Qxd2 {[%clk 0:00:49.9]} 29... Bxd2 {[%clk 0:00:12.2]} 30. Nc2 {[%clk
0:00:49.7]} 30... a5 {[%clk 0:00:08.6]} 31. Rb6 {[%clk 0:00:47.2]} 31... Nd8
{[%clk 0:00:04]} 32. bxa5 {[%clk 0:00:41.4]} 32... Bxa5 {[%clk 0:00:03.5]} 33.
Rxb5 {[%clk 0:00:41.5]} 33... Bc3 {[%clk 0:00:02.5]} 34. Rb8 {[%clk 0:00:38]}
34... Nf7 {[%clk 0:00:02.3]} 35. Rxf8+ {[%clk 0:00:36.3]} 35... Kxf8 {[%clk
0:00:03.2]} 36. h4 {[%clk 0:00:32.1]} 36... Ke8 {[%clk 0:00:02.8]} 37. Kg2
{[%clk 0:00:27.6]} 37... g5 {[%clk 0:00:02.9]} 38. h5 {[%clk 0:00:25.6]} 38...
g4 {[%clk 0:00:02.1]} 39. Be3 {[%clk 0:00:22.6]} 1-0

[Event "*** Titled Tuesday Blitz"]
[Site "Chess.com"]
[Date "2020.05.05"]
[Round "6"]
[White "FedaMaster"]
[Black "PauloCesarCosta_sad"]
[Result "1-0"]
[WhiteElo "2536"]
[BlackElo "2207"]
[TimeControl "180+1"]
[EndTime "11:07:43 PDT"]
[Termination "FedaMaster won on time"]

1. e4 {[%clk 0:03:00.9]} 1... e6 {[%clk 0:03:00.1]} 2. d4 {[%clk 0:03:00.5]}
2... d5 {[%clk 0:03:00.5]} 3. Bd3 {[%clk 0:02:43.5]} 3... Nf6 {[%clk 0:02:58]}
4. e5 {[%clk 0:02:42.5]} 4... Nfd7 {[%clk 0:02:57.9]} 5. f4 {[%clk 0:02:42.6]}
5... c5 {[%clk 0:02:57.8]} 6. c3 {[%clk 0:02:43.3]} 6... Nc6 {[%clk 0:02:57.2]}
7. Nf3 {[%clk 0:02:44]} 7... cxd4 {[%clk 0:02:54.5]} 8. cxd4 {[%clk 0:02:44.1]}
8... Be7 {[%clk 0:02:53.6]} 9. Nc3 {[%clk 0:02:39.6]} 9... O-O {[%clk
0:02:52.7]} 10. Be3 {[%clk 0:02:36.7]} 10... f5 {[%clk 0:02:48.6]} 11. exf6
{[%clk 0:02:34.7]} 11... Bxf6 {[%clk 0:02:42.4]} 12. O-O {[%clk 0:01:49.6]}
12... Qb6 {[%clk 0:02:18.8]} 13. Na4 {[%clk 0:01:45.4]} 13... Qb4 {[%clk
0:02:13.3]} 14. a3 {[%clk 0:01:35.8]} 14... Qe7 {[%clk 0:02:11.7]} 15. Ne5
{[%clk 0:01:33]} 15... Bxe5 {[%clk 0:02:05.5]} 16. fxe5 {[%clk 0:01:12.5]} 16...
Rxf1+ {[%clk 0:02:04.3]} 17. Qxf1 {[%clk 0:01:12.3]} 17... Nb6 {[%clk
0:01:51.6]} 18. Nxb6 {[%clk 0:00:58.6]} 18... axb6 {[%clk 0:01:51.9]} 19. Qf3
{[%clk 0:00:51.2]} 19... Bd7 {[%clk 0:01:50.7]} 20. Rf1 {[%clk 0:00:49.9]} 20...
Rf8 {[%clk 0:01:49.7]} 21. Qxf8+ {[%clk 0:00:32.9]} 21... Qxf8 {[%clk
0:01:49.2]} 22. Bxh7+ {[%clk 0:00:33.8]} 22... Kxh7 {[%clk 0:01:48]} 23. Rxf8
{[%clk 0:00:34.7]} 23... Ne7 {[%clk 0:01:43]} 24. Rf7 {[%clk 0:00:31.7]} 24...
Nf5 {[%clk 0:01:43]} 25. Rxd7 {[%clk 0:00:29.5]} 25... Nxe3 {[%clk 0:01:43.2]}
26. Rxb7 {[%clk 0:00:25.3]} 26... Nc2 {[%clk 0:01:43.1]} 27. Rxb6 {[%clk
0:00:25.3]} 27... Nxd4 {[%clk 0:01:43.3]} 28. a4 {[%clk 0:00:24.9]} 28... Ne2+
{[%clk 0:01:35.5]} 29. Kf2 {[%clk 0:00:24.4]} 29... Nf4 {[%clk 0:01:35]} 30. Kf3
{[%clk 0:00:20.9]} 30... Nd3 {[%clk 0:01:33.8]} 31. Rxe6 {[%clk 0:00:20.1]}
31... Nc5 {[%clk 0:01:31.8]} 32. Rc6 {[%clk 0:00:18.4]} 32... Nxa4 {[%clk
0:01:31.2]} 33. b4 {[%clk 0:00:18.6]} 33... d4 {[%clk 0:01:29.9]} 34. Ke4 {[%clk
0:00:18]} 34... d3 {[%clk 0:01:19.2]} 35. Kxd3 {[%clk 0:00:17.3]} 35... Kg8
{[%clk 0:01:19.8]} 36. Kc2 {[%clk 0:00:15.5]} 36... Kf7 {[%clk 0:01:18.5]} 37.
Kb3 {[%clk 0:00:15.6]} 1-0